Cogmind - Beta 12 @@@ ROGUE MODE // 2023.03.08 @ 16:33:09 Player: Elxavo Result: Self-destructed Performance ------------- Evolutions (1) 500 Regions Visited (2) 400 Robots Destroyed (20) 100 Value Destroyed (521) 521 Prototype IDs (2) 40 Alien Tech Used (0) 0 Bonus (0) 0 TOTAL SCORE: 1561 Bonus ------- None Cogmind --------- Core Integrity 302/400 Matter 174/300 Energy 29/100 System Corruption 0% Temperature Warm (134) Movement Walking (120) Location -9/Materials Parts ------- > --- POWER (1) -------- (None) > --- PROPULSION (2) --- Aluminum Leg Aluminum Leg > --- UTILITY (4) ------ Small Storage Unit Signal Interpreter Seismic Detector Targeting Computer > --- WEAPON (2) ------- Particle Cannon Particle Cannon > --- INVENTORY (8) ---- Aluminum Leg Peak State ------------ > --- POWER ------------ Light Ion Engine > --- PROPULSION ------- Aluminum Leg Aluminum Leg > --- UTILITY ---------- Small Storage Unit Signal Interpreter Seismic Detector Targeting Computer > --- WEAPON ----------- Particle Cannon Particle Cannon > --- INVENTORY -------- Aluminum Leg Aluminum Leg Aluminum Leg [Rating: 11] Favorites ----------- Power Light Ion Engine Engine Light Ion Engine Propulsion Aluminum Leg Treads Light Treads Leg Aluminum Leg Utility Small Storage Unit Device Seismic Detector Storage Small Storage Unit Processor Targeting Computer Protection Light Armor Plating Weapon Particle Gun Energy Gun Particle Gun Energy Cannon Particle Cannon Ballistic Gun Light Assault Rifle Ballistic Cannon Light Cannon Build | -11 -10 -9 ------- Run | Jun Mat Mat Slots Evolved 2 | . . 2 Power . | . . . Propulsion . | . . . Utility 2 | . . 2 Weapon . | . . . Parts Attached 29 | 7 15 7 Power 6 | 1 4 1 Engine 6 | 1 4 1 Core . | . . . Reactor . | . . . Propulsion 6 | 2 2 2 Treads 2 | 2 . . Leg 4 | . 2 2 Wheel . | . . . Hover . | . . . Flight . | . . . Utility 7 | 2 3 2 Device 2 | 1 . 1 Storage 1 | 1 . . Processor 2 | . 1 1 Hackware . | . . . Protection 2 | . 2 . Artifact . | . . . Weapon 10 | 2 6 2 Energy Gun 5 | . 5 . Energy Cannon 2 | . . 2 Ballistic Gun 2 | 2 . . Ballistic Cannon 1 | . 1 . Launcher . | . . . Special Weapon . | . . . Impact Weapon . | . . . Slashing Weapon . | . . . Piercing Weapon . | . . . Special Melee Weapon . | . . . Unidentified Prototypes . | . . . Parts Lost 14 | . 8 6 Power 3 | . 1 2 Propulsion 4 | . 2 2 Utility 1 | . 1 . Weapon 6 | . 4 2 Highest Loss Streak 6 | . 6 6 To Critical Strikes . | . . . Average Slot Usage (%) 96 | . 97 86 Engine 13 | . 13 9 Treads 9 | . 10 . Leg 17 | . 17 19 Device 6 | . 5 11 Storage 13 | . 14 11 Processor 5 | . 4 14 Protection 3 | . 3 . Energy Gun 10 | . 10 4 Ballistic Gun 8 | . 9 . Ballistic Cannon 6 | . 6 6 Naked Turns . | . . . Heaviest Build 17 | 12 17 17 Greatest Support 40 | 40 40 20 Greatest Overweight (x) 1 | . 1 . Average Overweight (x) . | . . . Largest Inventory Capacity 8 | 8 8 8 Average Capacity 7 | 7 8 8 Most Carried 8 | 7 8 7 Average Carried 6 | 3 7 5 Final Capacity 8 | 8 8 8 Final Carried 8 | 6 8 1 Class Distribution -------------------- 100% | Mutant Dominant Class ---------------- Mutant | -10/Materials Mutant | -9/Materials Resources | -11 -10 -9 ----------- Run | Jun Mat Mat Matter Collected 580 | 282 287 11 Remotely . | . . . Salvage Created 663 | 82 570 11 Parts 46 | 6 40 . Haulers Intercepted . | . . . Recyclers Shooed . | . . . Parts Field Recycled . | . . . Retrieved Matter . | . . . Parts Self-Destructed . | . . . Prevented . | . . . Kills | -11 -10 -9 ------- Run | Jun Mat Mat Combat Hostiles Destroyed 15 | . 14 1 Guns 13 | . 13 . Cannons 2 | . 1 1 Classes Destroyed 5 | 2 3 . Tunneler 1 | 1 . . Recycler 2 | 1 1 . Watcher 2 | . 2 . Swarmer 4 | . 3 1 Grunt 11 | . 11 . Best Kill Streak 4 | 2 4 1 Combat Bots Only 3 | . 3 1 Max Kills in Single Turn 1 | 1 1 1 Gunslinging . | . . . Exploded . | . . . Melee . | . . . Uniques/NPCs Destroyed . | . . . Combat | -11 -10 -9 -------- Run | Jun Mat Mat Damage Taken 1877 | . 1191 686 Core 293 | . 195 98 Absorbed by Shields . | . . . Core Remaining (%) 61 | 100 22 . Volleys Fired 108 | 3 88 17 Largest 2 | 2 2 2 Hottest 136 | 40 105 136 Shots Fired 165 | 6 131 28 Gun 116 | 6 108 2 Cannon 49 | . 23 26 Launcher . | . . . Special . | . . . Kinetic 88 | 6 74 8 Thermal 65 | . 45 20 Explosive . | . . . Electromagnetic 12 | . 12 . Robot Hit Streak 9 | 4 9 3 Robot Miss Streak 7 | . 7 7 Penetration Max . | . . . Secondary Targets 3 | . 3 . Max Gunslinging Chain 1 | . 1 . Shots Hit Robots 83 | 4 69 10 Core Hits 34 | 3 31 . Critical Kills . | . . . Critical Parts Destroyed . | . . . Critical Strikes 1 | . 1 . Burn 1 | . 1 . Melee Attacks . | . . . Impact . | . . . Slashing . | . . . Piercing . | . . . Sneak Attacks . | . . . Combat Hostiles . | . . . Follow-up Attacks . | . . . Damage Inflicted 1184 | 46 930 208 Guns 818 | 46 741 31 Cannons 366 | . 189 177 Explosions . | . . . Melee . | . . . Ramming . | . . . Kinetic 661 | 46 560 55 Thermal 444 | . 291 153 Explosive . | . . . Electromagnetic 79 | . 79 . Impact . | . . . Slashing . | . . . Piercing . | . . . Highest Corruption . | . . . Average Corruption . | . . . Corruption Purged . | . . . Corruption Blocked . | . . . Overload Shots . | . . . Overflow Damage 10 | . . 10 Projectiles 10 | . . 10 Explosions . | . . . Melee . | . . . Knockbacks 4 | . 2 2 Impact . | . . . Kinetic 4 | . 2 2 Secondary . | . . . Self-Inflicted Damage . | . . . Shots . | . . . Rammed . | . . . Targets Rammed . | . . . Kicked . | . . . Crushed . | . . . Highest Temperature 529 | . 529 415 Average Temperature 167 | . 168 163 Received Heat Transfer 516 | . 516 . Effects 13 | . 13 . Shutdowns 5 | . 5 . Energy Bleed 1 | . 1 . Interference 1 | . 1 . Matter Decay 1 | . 1 . Short Circuit 1 | . 1 . Damage (minor) 1 | . 1 . Damage (major) 2 | . 2 . Damage (core) 1 | . 1 . Siege Activations . | . . . Robots Corrupted . | . . . Combat Hostiles . | . . . Parts Fried . | . . . Impact Corruptions . | . . . Robots Melted . | . . . Combat Hostiles . | . . . Parts Melted 1 | . 1 . Heat Transferred 1073 | . 777 296 Parts Sabotaged . | . . . Parts Stolen . | . . . Parts Stripped . | . . . Power Chain Reactions . | . . . Missiles Intercepted . | . . . Alert | -11 -10 -9 ------- Run | Jun Mat Mat Peak Influence 175 | 10 175 46 Initial 6 | . 6 . Average 50 | 2 56 24 Maximum Alert Level . | . . . Low Security (%) 100 | 100 100 100 Level 1 . | . . . Level 2 . | . . . Level 3 . | . . . Level 4 . | . . . Level 5 . | . . . High Security . | . . . Max Security . | . . . Squads Dispatched 3 | . 3 . Investigation 1 | . 1 . Extermination . | . . . Reinforcement 2 | . 2 . Assault . | . . . Garrison . | . . . Intercept . | . . . Searches Triggered . | . . . Construction Impeded . | . . . Haulers Reinforced . | . . . Active Scanning Responses . | . . . Cargo Convoy Interrupts . | . . . Stealth | -11 -10 -9 --------- Run | Jun Mat Mat Distress Signals . | . . . Communications Jammed . | . . . Distress Signals . | . . . Times Spotted 24 | . 18 6 Peak Tracking Total 5 | . 5 5 Tactical Retreats . | . . . Traps | -11 -10 -9 ------- Run | Jun Mat Mat Traps Triggered 2 | . 2 . Indirectly . | . . . Trap Hack Attempts . | . . . Triggered . | . . . Disarmed . | . . . Reprogrammed . | . . . Reused . | . . . Traps Extracted . | . . . Installed . | . . . Triggered . | . . . Machines | -11 -10 -9 ---------- Run | Jun Mat Mat Machines Disabled 3 | . 1 2 Max in Single Turn 1 | . 1 1 Machines Repaired . | . . . Machines Sabotaged . | . . . Overloaded Fab Kills . | . . . Hacking | -11 -10 -9 --------- Run | Jun Mat Mat Machines Accessed 7 | . 7 . Terminals 5 | . 5 . Fabricators . | . . . Repair Stations . | . . . Recycling Units 2 | . 2 . Scanalyzers . | . . . Garrison Access . | . . . Total Hacks 16 | . 16 . Successful 12 | . 12 . Failed 4 | . 4 . Catastrophic . | . . . Database Lockouts . | . . . Manual . | . . . Terminals 14 | . 14 . Fabricators . | . . . Repair Stations . | . . . Recycling Units 2 | . 2 . Scanalyzers . | . . . Garrison Access . | . . . Terminal Hacks 10 | . 10 . Record 1 | . 1 . Robot Analysis 1 | . 1 . Prototype ID Bank 1 | . 1 . Alert Level 1 | . 1 . Locate Traps 1 | . 1 . Dispatch Records 1 | . 1 . Maintenance Status 1 | . 1 . Transport Status 1 | . 1 . Zone Layout 2 | . 2 . Fabricator Hacks . | . . . Repair Station Hacks . | . . . Recycling Unit Hacks 2 | . 2 . Retrieve Components 2 | . 2 . Scanalyzer . | . . . Garrison Access Hacks . | . . . Unauthorized Hacks . | . . . Terminals . | . . . Fabricators . | . . . Repair Stations . | . . . Recycling Units . | . . . Scanalyzers . | . . . Garrison Access . | . . . Data Cores Recovered . | . . . Used . | . . . Hacking Detections 4 | . 4 . Full Trace Events . | . . . Feedback Events . | . . . Feedback Blocked . | . . . Robot Schematics Acquired . | . . . Robots Built . | . . . Authchips . | . . . Time . | . . . Total Robot Build Rating . | . . . Part Schematics Acquired . | . . . Parts Built . | . . . Authchips . | . . . Time . | . . . Total Part Build Rating . | . . . Parts Repaired . | . . . Time . | . . . Parts Recycled . | . . . Recycled Matter . | . . . Retrieved Matter . | . . . Retrieved Components 11 | . 11 . Parts Scanalyzed . | . . . Part Schematics Acquired . | . . . Parts Damaged . | . . . Bothacking | -11 -10 -9 ------------ Run | Jun Mat Mat Used RIF Installer . | . . . Robots Hacked . | . . . Non-combat . | . . . Combat . | . . . Robot Hacks Applied . | . . . Relay Couplers Released . | . . . Fabnet Peak Effective % . | . . . Robots Rewired . | . . . Allies Hacked . | . . . Hacks Repelled . | . . . Allies | -11 -10 -9 -------- Run | Jun Mat Mat Total Allies . | . . . Largest Group . | . . . Highest-Rated Group . | . . . Highest-Rated Ally . | . . . Total Orders . | . . . Ally Attacks . | . . . Total Damage . | . . . Kills . | . . . Allies Corrupted . | . . . Allies Melted . | . . . Intel | -11 -10 -9 ------- Run | Jun Mat Mat Robot Analysis Total 1 | . 1 . Derelict Logs Recovered . | . . . Drone Launches . | . . . Drone Recoveries . | . . . Exploration | -11 -10 -9 ------------- Run | Jun Mat Mat Turns Passed 1415 | 116 1208 91 Spaces Moved 796 | 59 716 21 Core 5 | 5 . . Treads 255 | 54 201 . Legs 536 | . 515 21 Wheels . | . . . Hover . | . . . Flight . | . . . Fastest Speed 50 | 50 120 120 Average Speed 132 | 150 131 120 Slowest Speed 190 | 160 190 120 Overloaded Moves . | . . . Propulsion Burnouts . | . . . Robots Hopped . | . . . Cave-ins Triggered . | . . . Exploration Rate (%) 34 | 3 93 6 Regions Visited 2 Branch Regions . Pre-discovered Areas . | . . . Known Exits Taken . | . . . Unknown Exits Taken 2 | 1 1 . Scrap Searched . | . . . Spaces Dug . | . . . Terrain Destroyed . | . . . Melee . | . . . Projectile . | . . . AOE . | . . . Terrain Rammed . | . . . Walls Destroyed . | . . . Machines Disabled . | . . . Actions | -11 -10 -9 --------- Run | Jun Mat Mat Total 993 | 81 854 58 Wait 28 | . 15 13 Move 794 | 58 715 21 Hop . | . . . Pick Up 27 | 13 14 . Fast Attach 4 | . 4 . Attach 22 | 7 8 7 Detach . | . . . Swap 3 | . 3 . Drop 7 | . 7 . Fire 108 | 3 88 17 Melee . | . . . Ram . | . . . Kick . | . . . Crush . | . . . Escape Stasis . | . . . Rewire . | . . . Trap . | . . . Miscellaneous . | . . . Route ------- -11/Junkyard -10/Materials (discovered 5 exits: [*Mat x3] / [*Min x2]) -9/Materials History --------- Turn | Location | Event 14 | -11/Junkyard | Discovered new exit (range 15) 117 | -11/Junkyard | Entered Materials 166 | -10/Materials | Discovered new exit (range 7) 330 | -10/Materials | Build established: Mutant 580 | -10/Materials | Core integrity fell below 50% 608 | -10/Materials | Lost 6 parts (1p2n3w) 624 | -10/Materials | Discovered new exit (range 11) 765 | -10/Materials | Discovered new exit (range 9) 1062 | -10/Materials | Discovered new exit (range 16) 1181 | -10/Materials | Discovered new exit (range 15) 1325 | -10/Materials | Entered another Materials area 1325 | -9/Materials | Evolved 2 slots: Utility x2 1416 | -9/Materials | Self-destructed Last Messages --------------- 01234_ R-06 Scavenger collects Signal Interpreter. 01250_ R-06 Scavenger collects Aluminum Leg. PARAMETERS=UTILITY+2 LOCATION=UNKNOWN GOAL=ESCAPE 01358_ Purification Channel disabled. 01362_ W-16 Scout knocked back. 01364_ Particle Gun destroyed. 01368_ S-10 Pest knocked back. 01376_ Lgt. Cannon destroyed. 01381_ Ion Engine destroyed. 01383_ K-01 Serf collects debris. 01386_ Destroyed Lgt. Ion Engine. 01386_ S-10 Pest destroyed. 01386_ K-01 Serf collects debris. 01395_ Destroyed Lgt. Ion Engine. 01396_ Aluminum Leg destroyed. 01400_ Lgt. Ion Engine destroyed. 01410_ Purification Channel disabled. 01414_ Acquired 11 matter. Map ----- +----------------------------------------------------+ | ?????????????????????????????????????? | | ?????????????????????????????????????? | | ?????????????????????????????????????? | | ?????????????????????????????????????? | | ?????????????????????????????????????? | | ?????????????????????????????????????? | | ?????????????????????????????????????? | | ?????????????????????????????????????? | | ?????????????????????????????????????? | | ?????????????????????????????????????? | | ???????????? "?????????????????????? | | ???????????? %?????????????????????? | | ???????????? ?????????????????????? | | ??????? ? ?????????????????????? | | ??? ?? ?????????????????????? | | ??# ?? #?????????????????????? | | ??# ?? a#?????????????????????? | | ??# ?? #?????????????????????? | | ??# ?? " #?????????????????????? | | ??# """ """ #?#???????????????????? | | ??# """ """ # ???????????????????? | | ??# """ "" s# ????????????????????? | | ??# "" " ;?????????????????????? | | ??# """ "" #?????????????????????? | | ??# " " %s#?????????????????????? | | ??# """ " @ #?????????????????????? | | ??# " #?????????????????????? | | ??# s #?????????????????????? | | ??# #?????????????????????? | | ??# ###+######???????????????????? | | ??# # +???????????????????? | | ??# # #???????????????????? | | ??# # #???????????????????? | | ??# # +???????????????????? | | ??# # #???????????????????? | | ??# # #???????????????????? | | ??# # #???????????????????? | | ??####### /???????????????????? | | ????????# ##??????????????????? | | ????????##########???????????????????? | | ?????????????????????????????????????? | | ?????????????????????????????????????? | | ?????????????????????????????????????? | | ?????????????????????????????????????? | | ?????????????????????????????????????? | | ?????????????????????????????????????? | | ?????????????????????????????????????? | | ?????????????????????????????????????? | | ?????????????????????????????????????? | | ?????????????????????????????????????? | +----------------------------------------------------+ Best States ------------- Heat Dissipation 28 Energy Generation 10 Energy Capacity 250 Matter Stores 300 Matter Capacity 300 Sight Range 16 Terrain Scan Density 10 Armor Coverage 150 Evasion (%) 55 Targeting Accuracy 5 Recoil Reduction 2 Item Schematics ----------------- None Robot Schematics ------------------ None Fabricated ------------ Nothing Alien Tech Used ----------------- None Achievements -------------- None Challenges ------------ None Game ------ Seed ReactiveReinforcedMediator Manual? 0 Play Time 00:27:08 Cumulative 14.4 hours Start 2023.03.07 @ 21:52:39 End 2023.03.08 @ 16:33:09 Sessions 2 Manual Loads 0 Difficulty Rogue Special Mode None Game No. 14 Rogue 14 Adventurer 0 Explorer 0 Win Type - Total 0 Types 0/0/0/0/0/0/0/0/0 Lore% 16 Gallery% 15 Achievement% 14 Wizard Run 0 Options --------- ASCII 0 Keyboard 0 Movement Mouse Keybinds 0 Fullscreen 1 Font 16/Terminus Map View 76x50 Tactical HUD 1 Map Filters NONE Filters NONE Steam 1 RUN: 0ac46743-87ef-4619-9399-586e3d2f0bd5